[Event "Late-Titled-Tuesday-Blitz-January-23-2024"]
[Site "Chess.com"]
[Date "2024.01.23"]
[Round "6"]
[White "SEBAZZANO"]
[Black "ccccvhhhj"]
[Result "1-0"]
[WhiteElo "2219"]
[BlackElo "2471"]
[TimeControl "180+1"]
[EndTime "15:05:13 PST"]
[Termination "SEBAZZANO won by resignation"]

1. d4 {[%clk 0:03:00.9]} 1... e5 {[%clk 0:02:59.7]} 2. dxe5 {[%clk 0:03:00.2]}
2... d6 {[%clk 0:03:00.4]} 3. Nf3 {[%clk 0:02:58.1]} 3... Bg4 {[%clk 0:03:00.1]}
4. Qd4 {[%clk 0:02:49.3]} 4... Bxf3 {[%clk 0:02:48.9]} 5. exf3 {[%clk
0:02:48.7]} 5... Nc6 {[%clk 0:02:49.8]} 6. Bb5 {[%clk 0:02:46.2]} 6... Qd7
{[%clk 0:02:37.5]} 7. Bxc6 {[%clk 0:02:38.5]} 7... Qxc6 {[%clk 0:02:34.8]} 8.
exd6 {[%clk 0:02:24.3]} 8... Bxd6 {[%clk 0:01:59.7]} 9. Qe4+ {[%clk 0:02:02.5]}
9... Ne7 {[%clk 0:01:56.9]} 10. Nc3 {[%clk 0:01:51.5]} 10... O-O-O {[%clk
0:01:52.8]} 11. Qxc6 {[%clk 0:01:43.2]} 11... Nxc6 {[%clk 0:01:53.7]} 12. Be3
{[%clk 0:01:42.5]} 12... Bb4 {[%clk 0:01:51.2]} 13. O-O {[%clk 0:01:36.8]} 13...
Bxc3 {[%clk 0:01:50]} 14. bxc3 {[%clk 0:01:37.7]} 14... Ne5 {[%clk 0:01:46.4]}
15. Rfd1 {[%clk 0:01:35]} 15... Nc4 {[%clk 0:01:44.8]} 16. Kf1 {[%clk
0:01:03.7]} 16... Rhe8 {[%clk 0:01:38.9]} 17. Rxd8+ {[%clk 0:00:56.7]} 17...
Rxd8 {[%clk 0:01:39.8]} 18. Ke2 {[%clk 0:00:55.8]} 18... Re8 {[%clk 0:01:37.2]}
19. Rd1 {[%clk 0:00:49.4]} 19... b6 {[%clk 0:01:37.7]} 20. Rd4 {[%clk
0:00:45.6]} 20... Nd6 {[%clk 0:01:38.4]} 21. Kd2 {[%clk 0:00:37.4]} 21... f6
{[%clk 0:01:37.7]} 22. Rh4 {[%clk 0:00:33.5]} 22... h6 {[%clk 0:01:37.5]} 23.
Rg4 {[%clk 0:00:32.7]} 23... g5 {[%clk 0:01:36.8]} 24. h4 {[%clk 0:00:20.4]}
24... f5 {[%clk 0:01:34.5]} 25. Ra4 {[%clk 0:00:20]} 25... f4 {[%clk 0:01:33.1]}
26. Bd4 {[%clk 0:00:18.5]} 26... Kb7 {[%clk 0:01:33.5]} 27. hxg5 {[%clk
0:00:17.7]} 27... hxg5 {[%clk 0:01:34.4]} 28. Bf6 {[%clk 0:00:17.3]} 28... Rg8
{[%clk 0:01:29.3]} 29. Be7 {[%clk 0:00:14.7]} 29... Nf5 {[%clk 0:01:27.2]} 30.
Re4 {[%clk 0:00:14]} 30... Rg7 {[%clk 0:01:21.2]} 31. Bf6 {[%clk 0:00:13.1]}
31... Rd7+ {[%clk 0:01:22.1]} 32. Ke2 {[%clk 0:00:12.4]} 32... Rd5 {[%clk
0:01:00.5]} 33. Re5 {[%clk 0:00:11.8]} 33... Rxe5+ {[%clk 0:00:55.8]} 34. Bxe5
{[%clk 0:00:12.7]} 34... Nh6 {[%clk 0:00:49.6]} 35. Bf6 {[%clk 0:00:12.1]} 35...
Nf7 {[%clk 0:00:50.5]} 36. Kd3 {[%clk 0:00:11.8]} 36... Kc6 {[%clk 0:00:50.8]}
37. Ke4 {[%clk 0:00:12.4]} 37... Kd6 {[%clk 0:00:51.7]} 38. Kf5 {[%clk
0:00:12.3]} 38... a5 {[%clk 0:00:47.7]} 39. Bxg5 {[%clk 0:00:12]} 39... Kc5
{[%clk 0:00:48.6]} 40. Bxf4 {[%clk 0:00:11.6]} 40... Kb5 {[%clk 0:00:49.5]} 41.
Bxc7 {[%clk 0:00:10.5]} 41... Kc6 {[%clk 0:00:49.3]} 42. Bf4 {[%clk 0:00:09.6]}
42... b5 {[%clk 0:00:49.5]} 43. g4 {[%clk 0:00:09.4]} 43... Kc5 {[%clk
0:00:49.8]} 44. g5 {[%clk 0:00:09.3]} 44... Kc4 {[%clk 0:00:49.4]} 45. Bd2
{[%clk 0:00:09.8]} 45... Nd6+ {[%clk 0:00:46.6]} 46. Ke6 {[%clk 0:00:09.2]}
46... Ne8 {[%clk 0:00:45.5]} 47. g6 {[%clk 0:00:09.1]} 47... Ng7+ {[%clk
0:00:46.3]} 48. Kf7 {[%clk 0:00:09.2]} 48... Nf5 {[%clk 0:00:46.6]} 49. g7
{[%clk 0:00:08.5]} 49... Nd6+ {[%clk 0:00:47.5]} 50. Kf8 {[%clk 0:00:08.1]}
50... b4 {[%clk 0:00:48.4]} 51. cxb4 {[%clk 0:00:07.6]} 51... axb4 {[%clk
0:00:49.3]} 52. Bxb4 {[%clk 0:00:07.6]} 52... Kxb4 {[%clk 0:00:48.4]} 53. g8=Q
{[%clk 0:00:07.9]} 53... Nc4 {[%clk 0:00:49.3]} 54. Qxc4+ {[%clk 0:00:07.6]}
54... Kxc4 {[%clk 0:00:50.2]} 55. f4 {[%clk 0:00:07.8]} 55... Kd5 {[%clk
0:00:50.3]} 56. f5 {[%clk 0:00:08.2]} 56... Ke5 {[%clk 0:00:50.7]} 57. a4 {[%clk
0:00:09]} 57... Kxf5 {[%clk 0:00:51.3]} 58. a5 {[%clk 0:00:09.6]} 58... Ke6
{[%clk 0:00:52.2]} 59. a6 {[%clk 0:00:10.2]} 59... Kd6 {[%clk 0:00:53.1]} 60. a7
{[%clk 0:00:10.7]} 60... Kc7 {[%clk 0:00:54]} 61. a8=Q {[%clk 0:00:11.2]} 1-0

[Event "Late-Titled-Tuesday-Blitz-January-23-2024"]
[Site "Chess.com"]
[Date "2024.01.23"]
[Round "6"]
[White "Defenstrator"]
[Black "esrosenberg"]
[Result "1-0"]
[WhiteElo "2505"]
[BlackElo "2360"]
[TimeControl "180+1"]
[EndTime "15:05:15 PST"]
[Termination "Defenstrator won by resignation"]

1. b4 {[%clk 0:02:57.6]} 1... e6 {[%clk 0:02:45.5]} 2. Bb2 {[%clk 0:02:57.3]}
2... Nf6 {[%clk 0:02:44.2]} 3. a3 {[%clk 0:02:53.5]} 3... c5 {[%clk 0:02:42.1]}
4. bxc5 {[%clk 0:02:53.2]} 4... Bxc5 {[%clk 0:02:41.8]} 5. e3 {[%clk 0:02:41.2]}
5... d5 {[%clk 0:02:40.4]} 6. Bd3 {[%clk 0:02:38.8]} 6... Nc6 {[%clk 0:02:39.3]}
7. f4 {[%clk 0:02:35.2]} 7... Bd7 {[%clk 0:02:36.6]} 8. Nf3 {[%clk 0:02:35.6]}
8... Rc8 {[%clk 0:02:36.5]} 9. O-O {[%clk 0:02:33.2]} 9... a6 {[%clk 0:02:35.9]}
10. Ne5 {[%clk 0:02:25.5]} 10... Nxe5 {[%clk 0:02:35.2]} 11. Bxe5 {[%clk
0:02:25.5]} 11... h5 {[%clk 0:02:29.8]} 12. Nc3 {[%clk 0:02:19.5]} 12... Ng4
{[%clk 0:02:25.8]} 13. Qf3 {[%clk 0:01:58.9]} 13... Nxe5 {[%clk 0:01:09.4]} 14.
fxe5 {[%clk 0:01:58.6]} 14... Qe7 {[%clk 0:01:10.1]} 15. Qg3 {[%clk 0:01:47]}
15... g6 {[%clk 0:01:00.5]} 16. Ne2 {[%clk 0:01:36]} 16... h4 {[%clk 0:00:54.3]}
17. Qg4 {[%clk 0:01:23.6]} 17... h3 {[%clk 0:00:52.7]} 18. g3 {[%clk 0:01:17.4]}
18... Rh5 {[%clk 0:00:50.7]} 19. Bxg6 {[%clk 0:01:11.4]} 19... Rg5 {[%clk
0:00:23.9]} 20. Bxf7+ {[%clk 0:01:11.3]} 20... Kd8 {[%clk 0:00:24.5]} 21. Qxh3
{[%clk 0:01:09.7]} 21... Kc7 {[%clk 0:00:24.2]} 22. Nf4 {[%clk 0:01:00.3]} 22...
d4 {[%clk 0:00:18.6]} 23. Bxe6 {[%clk 0:00:46.1]} 23... dxe3 {[%clk 0:00:16.5]}
24. Nd5+ {[%clk 0:00:45.2]} 24... Kb8 {[%clk 0:00:15.8]} 25. Nxe7 {[%clk
0:00:42.4]} 25... e2+ {[%clk 0:00:14.8]} 26. Kg2 {[%clk 0:00:39.1]} 26...
exf1=Q+ {[%clk 0:00:12]} 27. Rxf1 {[%clk 0:00:36.9]} 27... Bxe6 {[%clk
0:00:11.5]} 28. Qxe6 {[%clk 0:00:35.6]} 28... Rc7 {[%clk 0:00:11.1]} 29. Nd5
{[%clk 0:00:32.2]} 29... Rc8 {[%clk 0:00:09.5]} 30. d4 {[%clk 0:00:21]} 30...
Bxd4 {[%clk 0:00:07.8]} 31. Qd6+ {[%clk 0:00:21.5]} 31... Ka7 {[%clk 0:00:07.1]}
32. Nb4 {[%clk 0:00:18.4]} 32... Bc5 {[%clk 0:00:06.1]} 33. Qd2 {[%clk
0:00:17.1]} 33... Rxe5 {[%clk 0:00:04.9]} 34. Nd3 {[%clk 0:00:17.1]} 34... Rd5
{[%clk 0:00:04.5]} 35. Qc3 {[%clk 0:00:14.6]} 35... b6 {[%clk 0:00:03.1]} 36.
Nxc5 {[%clk 0:00:14.2]} 36... Rdxc5 {[%clk 0:00:02.9]} 37. Rf7+ {[%clk
0:00:14.5]} 37... Kb8 {[%clk 0:00:02.7]} 38. Qg7 {[%clk 0:00:11.9]} 38... Rxc2+
{[%clk 0:00:03.6]} 39. Kh3 {[%clk 0:00:12.3]} 39... Rh8+ {[%clk 0:00:03.1]} 40.
Qxh8+ {[%clk 0:00:12.3]} 1-0

[Event "Late-Titled-Tuesday-Blitz-January-23-2024"]
[Site "Chess.com"]
[Date "2024.01.23"]
[Round "6"]
[White "ChEsper99"]
[Black "dolynachess"]
[Result "0-1"]
[WhiteElo "2108"]
[BlackElo "2496"]
[TimeControl "180+1"]
[EndTime "15:05:15 PST"]
[Termination "dolynachess won on time"]

1. d4 {[%clk 0:02:34.5]} 1... Nf6 {[%clk 0:02:57.7]} 2. Bf4 {[%clk 0:02:33.9]}
2... c5 {[%clk 0:02:55]} 3. c3 {[%clk 0:02:29.1]} 3... d5 {[%clk 0:02:54.1]} 4.
Nf3 {[%clk 0:02:27.6]} 4... Nc6 {[%clk 0:02:53.1]} 5. e3 {[%clk 0:02:27.4]} 5...
g6 {[%clk 0:02:51.3]} 6. Nbd2 {[%clk 0:02:26.3]} 6... Bg7 {[%clk 0:02:51.5]} 7.
h3 {[%clk 0:02:26.3]} 7... O-O {[%clk 0:02:51.4]} 8. Bd3 {[%clk 0:02:25.3]} 8...
Nd7 {[%clk 0:02:50.4]} 9. O-O {[%clk 0:02:21.1]} 9... e5 {[%clk 0:02:50]} 10.
dxe5 {[%clk 0:02:20.4]} 10... Ndxe5 {[%clk 0:02:50.9]} 11. Nxe5 {[%clk
0:02:19.6]} 11... Nxe5 {[%clk 0:02:51.8]} 12. Be2 {[%clk 0:02:18.4]} 12... Re8
{[%clk 0:02:51.2]} 13. Nf3 {[%clk 0:02:18]} 13... Nc4 {[%clk 0:02:50.7]} 14.
Bxc4 {[%clk 0:02:14.2]} 14... dxc4 {[%clk 0:02:51.6]} 15. Qxd8 {[%clk
0:02:10.1]} 15... Rxd8 {[%clk 0:02:52.5]} 16. Rfd1 {[%clk 0:02:10.3]} 16... Bf5
{[%clk 0:02:51.6]} 17. Be5 {[%clk 0:02:05.5]} 17... f6 {[%clk 0:02:47.5]} 18.
Bc7 {[%clk 0:02:01.7]} 18... Rd3 {[%clk 0:02:38]} 19. g4 {[%clk 0:01:46.7]}
19... Be4 {[%clk 0:02:31.1]} 20. Nd2 {[%clk 0:01:46.6]} 20... Bd5 {[%clk
0:02:16.9]} 21. b3 {[%clk 0:01:14.3]} 21... Rxc3 {[%clk 0:01:29]} 22. Nxc4
{[%clk 0:00:54.7]} 22... Bxc4 {[%clk 0:01:26.5]} 23. bxc4 {[%clk 0:00:53.3]}
23... Rxc4 {[%clk 0:01:21.3]} 24. Rac1 {[%clk 0:00:38.9]} 24... Rxc1 {[%clk
0:01:18.7]} 25. Rxc1 {[%clk 0:00:39.8]} 25... Bf8 {[%clk 0:01:13.8]} 26. Rd1
{[%clk 0:00:37.3]} 26... b5 {[%clk 0:01:08.1]} 27. Kf1 {[%clk 0:00:28.4]} 27...
a5 {[%clk 0:01:01.3]} 28. Ke2 {[%clk 0:00:27.4]} 28... c4 {[%clk 0:00:57.7]} 29.
Rd5 {[%clk 0:00:16.9]} 29... b4 {[%clk 0:00:21.1]} 30. Rxa5 {[%clk 0:00:16.7]}
30... Rc8 {[%clk 0:00:19.8]} 31. Ra7 {[%clk 0:00:14.3]} 31... c3 {[%clk
0:00:17]} 32. Kd1 {[%clk 0:00:13.9]} 32... f5 {[%clk 0:00:12.1]} 33. Kc2 {[%clk
0:00:12.7]} 33... fxg4 {[%clk 0:00:11.2]} 34. hxg4 {[%clk 0:00:13.6]} 34... h5
{[%clk 0:00:11.5]} 35. gxh5 {[%clk 0:00:13.6]} 35... gxh5 {[%clk 0:00:12.2]} 36.
a3 {[%clk 0:00:05.4]} 36... bxa3 {[%clk 0:00:10.8]} 37. Kb3 {[%clk 0:00:02.9]}
37... c2 {[%clk 0:00:10]} 0-1

[Event "Late-Titled-Tuesday-Blitz-January-23-2024"]
[Site "Chess.com"]
[Date "2024.01.23"]
[Round "6"]
[White "sergeikim"]
[Black "HackingKid98"]
[Result "0-1"]
[WhiteElo "2418"]
[BlackElo "2544"]
[TimeControl "180+1"]
[EndTime "15:05:17 PST"]
[Termination "HackingKid98 won on time"]

1. d4 {[%clk 0:02:55.1]} 1... Nf6 {[%clk 0:02:55.9]} 2. c4 {[%clk 0:02:55.1]}
2... e6 {[%clk 0:02:56.4]} 3. Nc3 {[%clk 0:02:54.5]} 3... d5 {[%clk 0:02:55.8]}
4. Nf3 {[%clk 0:02:54]} 4... Be7 {[%clk 0:02:53.5]} 5. Bf4 {[%clk 0:02:53.9]}
5... O-O {[%clk 0:02:53.3]} 6. e3 {[%clk 0:02:54.2]} 6... c5 {[%clk 0:02:53.3]}
7. a3 {[%clk 0:02:53.2]} 7... Nc6 {[%clk 0:02:53]} 8. Bd3 {[%clk 0:02:53.2]}
8... cxd4 {[%clk 0:02:52.2]} 9. exd4 {[%clk 0:02:52.8]} 9... dxc4 {[%clk
0:02:52.3]} 10. Bxc4 {[%clk 0:02:52.8]} 10... b6 {[%clk 0:02:50.7]} 11. O-O
{[%clk 0:02:51.9]} 11... Na5 {[%clk 0:02:50.9]} 12. Ba2 {[%clk 0:02:48.6]} 12...
Ba6 {[%clk 0:02:50.8]} 13. Re1 {[%clk 0:02:47.6]} 13... Rc8 {[%clk 0:02:50.9]}
14. Ne5 {[%clk 0:02:46.6]} 14... Nc4 {[%clk 0:02:47.6]} 15. Qe2 {[%clk
0:02:38.4]} 15... Nd5 {[%clk 0:02:44.2]} 16. Bg3 {[%clk 0:02:30]} 16... Nxc3
{[%clk 0:02:33.6]} 17. bxc3 {[%clk 0:02:29.4]} 17... b5 {[%clk 0:02:14.2]} 18.
a4 {[%clk 0:02:05.8]} 18... Qd5 {[%clk 0:01:59.9]} 19. axb5 {[%clk 0:01:57.4]}
19... Bxb5 {[%clk 0:02:00.8]} 20. Qg4 {[%clk 0:01:33.6]} 20... Qa8 {[%clk
0:01:38.3]} 21. Nxc4 {[%clk 0:01:25.3]} 21... Bxc4 {[%clk 0:01:38.3]} 22. Bxc4
{[%clk 0:01:18.1]} 22... Rxc4 {[%clk 0:01:39.2]} 23. Be5 {[%clk 0:01:18.2]}
23... g6 {[%clk 0:01:38.8]} 24. Re3 {[%clk 0:01:01.4]} 24... Rfc8 {[%clk
0:01:32.8]} 25. Rc1 {[%clk 0:00:58.6]} 25... Bf8 {[%clk 0:01:24.2]} 26. h4
{[%clk 0:00:53.8]} 26... Bg7 {[%clk 0:01:23]} 27. Bxg7 {[%clk 0:00:52.6]} 27...
Kxg7 {[%clk 0:01:22.9]} 28. h5 {[%clk 0:00:51.2]} 28... Qd5 {[%clk 0:01:12.5]}
29. Re5 {[%clk 0:00:49.1]} 29... Qd8 {[%clk 0:01:12.5]} 30. Qf3 {[%clk
0:00:45.5]} 30... Rxd4 {[%clk 0:01:01.1]} 31. h6+ {[%clk 0:00:44.8]} 31... Kg8
{[%clk 0:01:00.7]} 32. g3 {[%clk 0:00:24.6]} 32... Rd5 {[%clk 0:00:52.7]} 33.
Rce1 {[%clk 0:00:22.9]} 33... Rcc5 {[%clk 0:00:46.8]} 34. Rxd5 {[%clk 0:00:19]}
34... Rxd5 {[%clk 0:00:47.7]} 35. c4 {[%clk 0:00:18.2]} 35... Rd3 {[%clk
0:00:46.9]} 36. Qb7 {[%clk 0:00:13.7]} 36... Rd7 {[%clk 0:00:37.9]} 37. Qf3
{[%clk 0:00:11.9]} 37... Qg5 {[%clk 0:00:34.1]} 38. Qa8+ {[%clk 0:00:09.3]}
38... Rd8 {[%clk 0:00:34.5]} 39. Qxa7 {[%clk 0:00:09]} 39... Qxh6 {[%clk
0:00:34.4]} 40. c5 {[%clk 0:00:08.8]} 40... Qd2 {[%clk 0:00:33.5]} 41. Rf1
{[%clk 0:00:06.3]} 41... Qc2 {[%clk 0:00:31.6]} 42. Qe7 {[%clk 0:00:02.5]} 42...
Rc8 {[%clk 0:00:30.9]} 43. Qf6 {[%clk 0:00:01.6]} 43... Qxc5 {[%clk 0:00:29.8]}
44. Rd1 {[%clk 0:00:01.6]} 44... Qc7 {[%clk 0:00:26.5]} 0-1

[Event "Late-Titled-Tuesday-Blitz-January-23-2024"]
[Site "Chess.com"]
[Date "2024.01.23"]
[Round "6"]
[White "PNEPaul"]
[Black "norwaytoadog"]
[Result "1-0"]
[WhiteElo "1925"]
[BlackElo "2277"]
[TimeControl "180+1"]
[EndTime "15:05:18 PST"]
[Termination "PNEPaul won on time"]

1. e4 {[%clk 0:03:00.9]} 1... c5 {[%clk 0:02:59.4]} 2. d4 {[%clk 0:02:59.8]}
2... cxd4 {[%clk 0:02:58.6]} 3. c3 {[%clk 0:03:00.1]} 3... e5 {[%clk 0:02:58.7]}
4. Nf3 {[%clk 0:02:59.2]} 4... Nc6 {[%clk 0:02:58.3]} 5. Bc4 {[%clk 0:02:59.2]}
5... Nf6 {[%clk 0:02:58.5]} 6. Ng5 {[%clk 0:02:50.8]} 6... d5 {[%clk 0:02:58.1]}
7. exd5 {[%clk 0:02:50.1]} 7... Na5 {[%clk 0:02:58.1]} 8. O-O {[%clk 0:02:36.7]}
8... Nxc4 {[%clk 0:02:54.7]} 9. Qa4+ {[%clk 0:02:36.2]} 9... Bd7 {[%clk
0:02:48.4]} 10. Qxc4 {[%clk 0:02:35.9]} 10... Rc8 {[%clk 0:02:46.5]} 11. Qb3
{[%clk 0:02:35]} 11... h6 {[%clk 0:01:42.6]} 12. Nf3 {[%clk 0:02:32.4]} 12... e4
{[%clk 0:01:39.7]} 13. Nxd4 {[%clk 0:02:30.1]} 13... Bd6 {[%clk 0:01:39.9]} 14.
h3 {[%clk 0:02:13.2]} 14... a6 {[%clk 0:01:32.3]} 15. Be3 {[%clk 0:02:10.6]}
15... O-O {[%clk 0:01:31.9]} 16. Nd2 {[%clk 0:02:07.8]} 16... b5 {[%clk
0:01:20]} 17. Qc2 {[%clk 0:02:04.2]} 17... Qe7 {[%clk 0:01:18.9]} 18. Rfe1
{[%clk 0:01:55.6]} 18... Rfe8 {[%clk 0:01:15.1]} 19. Nc6 {[%clk 0:01:22.9]}
19... Bxc6 {[%clk 0:01:10.4]} 20. dxc6 {[%clk 0:01:22.5]} 20... Rxc6 {[%clk
0:01:04.2]} 21. Rad1 {[%clk 0:01:14.5]} 21... Bb8 {[%clk 0:00:50.6]} 22. Nf1
{[%clk 0:01:05.6]} 22... b4 {[%clk 0:00:43.2]} 23. Bd4 {[%clk 0:01:02.5]} 23...
Be5 {[%clk 0:00:34.6]} 24. Bxe5 {[%clk 0:00:55.5]} 24... Qxe5 {[%clk 0:00:34.6]}
25. c4 {[%clk 0:00:50.1]} 25... Qf4 {[%clk 0:00:28.4]} 26. b3 {[%clk 0:00:41.2]}
26... Rc5 {[%clk 0:00:28]} 27. Qd2 {[%clk 0:00:35.4]} 27... Qh4 {[%clk
0:00:26.2]} 28. Qe3 {[%clk 0:00:32.5]} 28... Rg5 {[%clk 0:00:23.4]} 29. Ng3
{[%clk 0:00:27.4]} 29... Nh5 {[%clk 0:00:19.9]} 30. Nxh5 {[%clk 0:00:24.2]}
30... Qxh5 {[%clk 0:00:20.1]} 31. Rd4 {[%clk 0:00:22]} 31... Qg6 {[%clk
0:00:19.5]} 32. g3 {[%clk 0:00:20.2]} 32... f5 {[%clk 0:00:19.5]} 33. Qf4 {[%clk
0:00:16.1]} 33... h5 {[%clk 0:00:17.7]} 34. Rd6 {[%clk 0:00:15.3]} 34... Re6
{[%clk 0:00:07.2]} 35. Rxe6 {[%clk 0:00:12.7]} 35... Qxe6 {[%clk 0:00:07.6]} 36.
Qxg5 {[%clk 0:00:12.6]} 36... Qe5 {[%clk 0:00:06.8]} 37. Qf4 {[%clk 0:00:11.9]}
37... Qc3 {[%clk 0:00:06.1]} 38. Re3 {[%clk 0:00:11.4]} 38... Qc1+ {[%clk
0:00:05.9]} 39. Kg2 {[%clk 0:00:11.3]} 39... Qd1 {[%clk 0:00:05.2]} 40. Qxf5
{[%clk 0:00:10.8]} 40... Qd4 {[%clk 0:00:03.6]} 41. Qxe4 {[%clk 0:00:10.3]} 1-0

[Event "Late-Titled-Tuesday-Blitz-January-23-2024"]
[Site "Chess.com"]
[Date "2024.01.23"]
[Round "6"]
[White "jcibarra"]
[Black "Oleksandr_Bortnyk"]
[Result "0-1"]
[WhiteElo "2859"]
[BlackElo "3069"]
[TimeControl "180+1"]
[EndTime "15:05:19 PST"]
[Termination "Oleksandr_Bortnyk won by resignation"]

1. d4 {[%clk 0:03:00.9]} 1... Nf6 {[%clk 0:02:58.1]} 2. Bg5 {[%clk 0:02:59.9]}
2... b6 {[%clk 0:02:57.2]} 3. Nc3 {[%clk 0:02:53.5]} 3... Bb7 {[%clk 0:02:57]}
4. Qd3 {[%clk 0:02:52.9]} 4... d5 {[%clk 0:02:54.1]} 5. f3 {[%clk 0:02:23.8]}
5... Nc6 {[%clk 0:02:48.4]} 6. O-O-O {[%clk 0:02:21.3]} 6... e6 {[%clk
0:02:30.1]} 7. e4 {[%clk 0:02:19.4]} 7... Be7 {[%clk 0:02:18.2]} 8. e5 {[%clk
0:02:13.4]} 8... Nd7 {[%clk 0:02:18.1]} 9. Bxe7 {[%clk 0:02:14]} 9... Qxe7
{[%clk 0:02:16.1]} 10. f4 {[%clk 0:02:14.6]} 10... f6 {[%clk 0:02:07.8]} 11. Nf3
{[%clk 0:02:13.4]} 11... O-O-O {[%clk 0:02:05.2]} 12. Qe3 {[%clk 0:02:06.9]}
12... fxe5 {[%clk 0:02:05.3]} 13. fxe5 {[%clk 0:02:05.7]} 13... Rhf8 {[%clk
0:02:04.3]} 14. h4 {[%clk 0:02:05.6]} 14... h6 {[%clk 0:02:04.3]} 15. a3 {[%clk
0:02:03.8]} 15... Kb8 {[%clk 0:02:02.3]} 16. Bd3 {[%clk 0:02:01.8]} 16... Na5
{[%clk 0:02:01.8]} 17. Kb1 {[%clk 0:01:43.9]} 17... c5 {[%clk 0:01:58.7]} 18.
Nb5 {[%clk 0:01:39.3]} 18... c4 {[%clk 0:01:53.6]} 19. Bg6 {[%clk 0:01:38]}
19... Bc6 {[%clk 0:01:50.5]} 20. Nd6 {[%clk 0:01:36.1]} 20... Nb7 {[%clk
0:01:50]} 21. Rhe1 {[%clk 0:01:26.5]} 21... b5 {[%clk 0:01:48]} 22. c3 {[%clk
0:01:21.1]} 22... Nb6 {[%clk 0:01:45.1]} 23. h5 {[%clk 0:01:08.9]} 23... a5
{[%clk 0:01:37.5]} 24. Rf1 {[%clk 0:01:07.2]} 24... Nd7 {[%clk 0:01:15.3]} 25.
Rde1 {[%clk 0:01:03.7]} 25... Kc7 {[%clk 0:01:09.8]} 26. Bc2 {[%clk 0:01:01.9]}
26... b4 {[%clk 0:01:07.5]} 27. axb4 {[%clk 0:00:57.5]} 27... axb4 {[%clk
0:01:08.4]} 28. cxb4 {[%clk 0:00:58.2]} 28... Nxd6 {[%clk 0:01:09]} 29. exd6+
{[%clk 0:00:58.4]} 29... Qxd6 {[%clk 0:01:09.9]} 30. Qxe6 {[%clk 0:00:55.8]}
30... Qxb4 {[%clk 0:01:07.4]} 31. Ne5 {[%clk 0:00:56.2]} 31... Nxe5 {[%clk
0:01:00.6]} 32. Qxe5+ {[%clk 0:00:56]} 32... Kb6 {[%clk 0:01:00.1]} 33. Qe3
{[%clk 0:00:40]} 33... Rde8 {[%clk 0:00:35.6]} 34. Qc3 {[%clk 0:00:40]} 34...
Qxc3 {[%clk 0:00:22.1]} 35. bxc3 {[%clk 0:00:39.7]} 35... Rxf1 {[%clk 0:00:23]}
36. Rxf1 {[%clk 0:00:39.7]} 36... Re2 {[%clk 0:00:23.9]} 37. g4 {[%clk 0:00:38]}
37... Rg2 {[%clk 0:00:24.3]} 38. Bd1 {[%clk 0:00:34.1]} 38... Bd7 {[%clk
0:00:23.3]} 39. Rf4 {[%clk 0:00:28.9]} 39... Rg1 {[%clk 0:00:23.3]} 40. Kc1
{[%clk 0:00:08]} 40... Ba4 {[%clk 0:00:23.2]} 41. Rf7 {[%clk 0:00:07.6]} 41...
Bxd1 {[%clk 0:00:19]} 42. Kd2 {[%clk 0:00:08]} 42... Bxg4 {[%clk 0:00:15.9]} 43.
Rxg7 {[%clk 0:00:07.7]} 43... Rg2+ {[%clk 0:00:15.2]} 44. Ke3 {[%clk 0:00:05.3]}
44... Re2+ {[%clk 0:00:15]} 45. Kf4 {[%clk 0:00:05.4]} 45... Re4+ {[%clk
0:00:15.9]} 46. Kg3 {[%clk 0:00:05.2]} 46... Bxh5 {[%clk 0:00:16.7]} 47. Re7
{[%clk 0:00:02.5]} 47... Rxe7 {[%clk 0:00:16.6]} 0-1

[Event "Late-Titled-Tuesday-Blitz-January-23-2024"]
[Site "Chess.com"]
[Date "2024.01.23"]
[Round "6"]
[White "Vamostodorecto"]
[Black "jk13"]
[Result "0-1"]
[WhiteElo "2384"]
[BlackElo "2659"]
[TimeControl "180+1"]
[EndTime "15:05:20 PST"]
[Termination "jk13 won on time"]

1. d4 {[%clk 0:02:53.3]} 1... Nf6 {[%clk 0:03:00.2]} 2. c4 {[%clk 0:02:52.5]}
2... e6 {[%clk 0:03:00.9]} 3. Nc3 {[%clk 0:02:51.5]} 3... Bb4 {[%clk 0:03:01.6]}
4. a3 {[%clk 0:02:45.8]} 4... Bxc3+ {[%clk 0:03:01.7]} 5. bxc3 {[%clk
0:02:46.7]} 5... O-O {[%clk 0:03:02]} 6. f3 {[%clk 0:02:47.3]} 6... d5 {[%clk
0:03:02.1]} 7. cxd5 {[%clk 0:02:47.8]} 7... exd5 {[%clk 0:03:02.2]} 8. e3 {[%clk
0:02:48.4]} 8... c5 {[%clk 0:03:02.3]} 9. Bd3 {[%clk 0:02:48.9]} 9... b6 {[%clk
0:03:02.9]} 10. Ne2 {[%clk 0:02:49]} 10... Ba6 {[%clk 0:03:03.5]} 11. O-O {[%clk
0:02:49.5]} 11... Re8 {[%clk 0:03:03]} 12. Ng3 {[%clk 0:02:48.4]} 12... Bxd3
{[%clk 0:03:02]} 13. Qxd3 {[%clk 0:02:47.7]} 13... Nc6 {[%clk 0:03:02.9]} 14.
Ra2 {[%clk 0:02:46.6]} 14... h5 {[%clk 0:03:02.1]} 15. Re2 {[%clk 0:02:46.4]}
15... Qd7 {[%clk 0:02:58.9]} 16. Bb2 {[%clk 0:02:42.9]} 16... Rad8 {[%clk
0:02:58.8]} 17. Rd1 {[%clk 0:01:41.9]} 17... h4 {[%clk 0:02:56]} 18. Nh1 {[%clk
0:01:40.4]} 18... h3 {[%clk 0:02:53.7]} 19. g4 {[%clk 0:01:39.3]} 19... Nh7
{[%clk 0:02:34.1]} 20. Ng3 {[%clk 0:01:22.5]} 20... Ng5 {[%clk 0:02:31.3]} 21.
Rf1 {[%clk 0:01:21.1]} 21... Re6 {[%clk 0:02:17.7]} 22. Qf5 {[%clk 0:01:18.3]}
22... Qe7 {[%clk 0:02:09.7]} 23. e4 {[%clk 0:01:13.4]} 23... g6 {[%clk
0:01:58.1]} 24. Qf4 {[%clk 0:01:02.3]} 24... cxd4 {[%clk 0:01:44.9]} 25. cxd4
{[%clk 0:01:01.4]} 25... dxe4 {[%clk 0:01:43.3]} 26. fxe4 {[%clk 0:01:02.3]}
26... Nxd4 {[%clk 0:01:42.3]} 27. Ref2 {[%clk 0:00:48.7]} 27... f6 {[%clk
0:01:15.7]} 28. e5 {[%clk 0:00:36.6]} 28... fxe5 {[%clk 0:01:08.5]} 29. Qe3
{[%clk 0:00:37.2]} 29... Rd7 {[%clk 0:00:56.8]} 30. Ne4 {[%clk 0:00:37.3]} 30...
Nxe4 {[%clk 0:00:55]} 31. Qxe4 {[%clk 0:00:38.2]} 31... Kh7 {[%clk 0:00:28.1]}
32. Rf7+ {[%clk 0:00:34.4]} 32... Qxf7 {[%clk 0:00:27.7]} 33. Rxf7+ {[%clk
0:00:35.2]} 33... Rxf7 {[%clk 0:00:27.9]} 34. Bxd4 {[%clk 0:00:35.8]} 34... Ref6
{[%clk 0:00:23.8]} 35. Qd3 {[%clk 0:00:19]} 35... Rf3 {[%clk 0:00:21.4]} 36. Be3
{[%clk 0:00:15.5]} 36... e4 {[%clk 0:00:18.1]} 37. Qe2 {[%clk 0:00:14.1]} 37...
b5 {[%clk 0:00:15.4]} 38. Bc5 {[%clk 0:00:06.6]} 38... a5 {[%clk 0:00:14.3]} 39.
Qxb5 {[%clk 0:00:06.5]} 39... e3 {[%clk 0:00:12.8]} 40. Qe2 {[%clk 0:00:04.8]}
40... Rf2 {[%clk 0:00:12.9]} 41. Qe1 {[%clk 0:00:03]} 41... Rg2+ {[%clk
0:00:12]} 42. Kh1 {[%clk 0:00:03.3]} 42... e2 {[%clk 0:00:12.8]} 43. Bd4 {[%clk
0:00:01.9]} 43... Rf1+ {[%clk 0:00:11.8]} 0-1